bitfinex/quotes_BTCUSD_20220306
["timestamp","ask_amount","ask_price","bid_price","bid_amount"]
[1646529452853,0.0194,39622.0,39621.0,0.3]
[1646529453042,0.0194,39622.0,39621.0,0.675826]
[1646529453242,0.00354513,39623.0,39622.0,0.9388]
[1646529453439,0.00354513,39623.0,39622.0,1.2388]
[1646529453942,0.0033,39623.0,39622.0,1.2388]
[1646529457079,0.0033,39623.0,39622.0,0.0388]
[1646529467025,0.0033,39623.0,39622.0,0.714626]
[1646529467323,0.0033,39623.0,39622.0,0.3388]
[1646529470176,0.0033,39623.0,39622.0,0.714626]
[1646529470374,0.0033,39623.0,39622.0,0.3388]
[1646529474228,0.0033,39623.0,39622.0,0.714626]
[1646529474627,0.0033,39623.0,39622.0,1.486526]
[1646529474827,0.0033,39623.0,39622.0,1.1107]
[1646529475427,0.0033,39623.0,39622.0,1.11167181]
[1646529477170,0.00085177,39624.0,39622.0,1.11167181]
[1646529477373,0.0006,39625.0,39624.0,2.047976]
[1646529477573,0.0006,39625.0,39624.0,1.67215]
[1646529480386,0.0159,39639.0,39625.0,0.375826]
[1646529480737,0.0033,39639.0,39629.0,1.147726]
[1646529480933,0.0033,39639.0,39629.0,1.1224]
[1646529481938,0.0033,39639.0,39630.0,0.375826]
[1646529482139,0.0033,39639.0,39638.0,0.7719]
[1646529482337,0.0033,39641.0,39638.0,1.521466]
[1646529482539,0.0033,39641.0,39638.0,0.37374]
[1646529482836,0.0033,39641.0,39639.0,0.20801135]
[1646529483039,0.0033,39641.0,39639.0,0.3990993]
[1646529483240,0.0011,39651.0,39643.0,0.01759999]
[1646529484246,0.0148,39649.0,39643.0,0.01759999]
[1646529484480,0.02636,39647.0,39643.0,0.01759999]
[1646529484674,0.04006,39645.0,39643.0,0.01759999]
[1646529484878,0.2661474,39644.0,39643.0,0.01759999]
[1646529485075,0.07686,39644.0,39643.0,0.01759999]
[1646529485276,0.0516,39644.0,39643.0,0.01759999]
[1646529485476,0.26606193,39644.0,39643.0,0.01759999]
[1646529486575,0.07686,39644.0,39643.0,0.01759999]
[1646529486980,0.36581557,39644.0,39643.0,0.01759999]
[1646529487279,0.37841557,39644.0,39643.0,0.01759999]
[1646529487675,0.39524183,39644.0,39643.0,0.01759999]
[1646529488078,0.67526,39643.0,39630.0,0.00989999]
[1646529488342,0.02526,39636.0,39630.0,0.00989999]
[1646529488542,0.02526,39636.0,39629.0,0.00085275]
[1646529488543,0.02526,39632.0,39629.0,0.00085275]
[1646529488739,0.02526,39630.0,39629.0,0.00085275]
[1646529488942,0.07576,39630.0,39629.0,0.00085275]
[1646529489539,0.07576,39630.0,39628.0,0.00072013]
[1646529490140,0.16526,39629.0,39628.0,0.00072013]
[1646529490539,0.092592,39629.0,39628.0,0.00072013]
[1646529494478,0.067332,39629.0,39627.0,0.00160251]
[1646529494679,0.01683221,39628.0,39627.0,0.00160251]
[1646529494880,0.06733221,39628.0,39627.0,0.00160251]
[1646529495080,0.0505,39628.0,39627.0,0.00160251]
[1646529495733,0.00024344,39630.0,39627.0,0.20648018]
[1646529496034,0.105,39634.0,39627.0,0.20648018]
[1646529496234,0.00024344,39629.0,39627.0,0.20648018]
[1646529496835,0.00024344,39629.0,39627.0,0.00160251]
[1646529497137,0.12526,39635.0,39627.0,0.00160251]
[1646529497336,0.00024437,39630.0,39627.0,0.00160251]
[1646529498237,0.003,39634.0,39627.0,0.00160251]
[1646529498536,0.00024437,39630.0,39627.0,0.00160251]
[1646529499579,0.0505,39636.0,39627.0,0.00085365]
[1646529499778,0.00024437,39630.0,39629.0,0.00093028]
[1646529500779,0.002,39636.0,39631.0,0.15852261]
[1646529501180,0.0505,39639.0,39631.0,0.15852261]
[1646529502183,0.00024431,39637.0,39631.0,0.15852261]
[1646529502783,0.00024431,39637.0,39629.0,0.00093028]
[1646529503082,0.0505,39639.0,39629.0,0.00093028]
[1646529503332,0.02526,39641.0,39629.0,0.00093028]
[1646529503333,1.83439426,39633.0,39629.0,0.00093028]
[1646529503530,0.00024432,39635.0,39629.0,0.00093028]
[1646529503725,0.0505,39634.0,39629.0,0.00093028]
[1646529504524,0.00024433,39633.0,39629.0,0.00093028]
[1646529504726,0.00024433,39633.0,39632.0,0.00090229]
[1646529504926,0.01732582,39633.0,39632.0,0.00090229]
[1646529505524,0.01708149,39633.0,39632.0,0.00090229]
[1646529506027,0.06758149,39633.0,39632.0,0.00090229]
[1646529507083,0.0505,39633.0,39632.0,0.00090229]
[1646529507281,0.06437239,39633.0,39632.0,0.00090229]
[1646529507481,0.07601268,39633.0,39632.0,0.00090229]
[1646529507684,0.05075268,39633.0,39632.0,0.00090229]
[1646529509285,0.05075268,39633.0,39632.0,0.00159229]
[1646529514238,0.05075268,39633.0,39632.0,0.00249686]
[1646529515475,0.04655268,39633.0,39632.0,0.00249686]
[1646529516681,0.07181268,39633.0,39632.0,0.00249686]
[1646529517483,0.70311268,39633.0,39632.0,0.00249686]
[1646529517678,0.80311268,39633.0,39632.0,0.00249686]
[1646529519933,0.80311268,39633.0,39632.0,0.00159229]
[1646529524584,0.77785268,39633.0,39632.0,0.00159229]
[1646529524786,0.14655268,39633.0,39632.0,0.00159229]
[1646529525187,0.04655268,39633.0,39632.0,0.00159229]
[1646529531783,0.03355268,39633.0,39632.0,0.00159229]
[1646529534940,0.03355268,39633.0,39623.0,0.16164349]
[1646529535139,0.0333,39633.0,39632.0,0.00261931]
[1646529535339,0.14581484,39633.0,39632.0,0.00261931]
[1646529538590,0.000244,39634.0,39633.0,0.45468835]
[1646529538791,0.02452916,39634.0,39633.0,0.29162968]
[1646529539188,0.02428516,39634.0,39633.0,0.29162968]
[1646529539788,0.02428516,39634.0,39633.0,0.71574078]
[1646529540188,0.02428516,39634.0,39633.0,0.50703949]
[1646529540390,0.0493627,39637.0,39633.0,0.50703949]
[1646529540735,0.01928516,39634.0,39633.0,0.50703949]
[1646529541837,0.01928516,39634.0,39633.0,0.29162968]
[1646529544685,0.01928516,39634.0,39633.0,0.29257052]
[1646529546881,0.01928516,39634.0,39633.0,0.46527921]
[1646529547882,0.01928516,39634.0,39633.0,0.29257052]
[1646529548938,0.01928516,39634.0,39633.0,0.46346436]
[1646529549541,0.01928516,39634.0,39633.0,0.29257052]
[1646529550744,0.01928516,39634.0,39633.0,0.50655771]
[1646529551040,0.01928516,39634.0,39633.0,0.29257052]
[1646529552084,0.01928516,39634.0,39633.0,0.48328485]
[1646529552383,0.01928516,39634.0,39633.0,0.29257052]
[1646529553484,0.01928516,39634.0,39633.0,0.48366092]
[1646529554884,0.01928516,39634.0,39633.0,0.29257052]
[1646529560489,0.01928516,39634.0,39633.0,0.29249045]
[1646529565838,0.06978516,39634.0,39633.0,0.29249045]
[1646529568394,0.36978516,39634.0,39633.0,0.29249045]
[1646529571541,1.12634516,39634.0,39633.0,0.29249045]
[1646529571736,1.23949716,39634.0,39633.0,0.29249045]
[1646529571941,1.86713056,39634.0,39633.0,0.29249045]
[1646529572137,2.29410474,39634.0,39633.0,0.10902945]
[1646529574342,1.86713056,39634.0,39633.0,0.10902945]
[1646529575594,1.86713056,39634.0,39633.0,0.10626106]
[1646529576396,1.39640593,39634.0,39633.0,0.10626106]
[1646529577398,1.33325393,39634.0,39633.0,0.10626106]
[1646529577600,1.30799393,39634.0,39633.0,0.10626106]
[1646529578436,1.15799393,39634.0,39633.0,0.10626106]
[1646529578634,1.30799393,39634.0,39633.0,0.10626106]
[1646529579537,1.45799393,39634.0,39633.0,0.10626106]
[1646529579839,1.30799393,39634.0,39633.0,0.10626106]
[1646529580137,1.45799393,39634.0,39633.0,0.10626106]
[1646529580437,1.30799393,39634.0,39633.0,0.10626106]
[1646529583084,1.00799393,39634.0,39633.0,0.10626106]
[1646529583483,0.85108516,39634.0,39633.0,0.10626106]
[1646529583684,1.30799393,39634.0,39633.0,0.10626106]
[1646529583885,0.85108516,39634.0,39633.0,0.10626106]
[1646529584084,1.30799393,39634.0,39633.0,0.10626106]
[1646529584284,0.85108516,39634.0,39633.0,0.10626106]
[1646529584486,1.30799393,39634.0,39633.0,0.10626106]
[1646529584684,1.00799393,39634.0,39633.0,0.10626106]
[1646529585089,0.85108516,39634.0,39633.0,0.10626106]
[1646529585387,1.15108516,39634.0,39633.0,0.10626106]
[1646529585839,1.30799393,39634.0,39633.0,0.10626106]
[1646529587844,1.00799393,39634.0,39633.0,0.10626106]
[1646529588243,1.30799393,39634.0,39633.0,0.10626106]
[1646529588443,0.85108516,39634.0,39633.0,0.10626106]
[1646529588743,1.15108516,39634.0,39633.0,0.10626106]
[1646529589142,1.30799393,39634.0,39633.0,0.10626106]
[1646529590089,0.85799393,39634.0,39633.0,0.10626106]
[1646529590293,0.95799393,39634.0,39633.0,0.10626106]
[1646529590490,0.06978516,39634.0,39633.0,0.10626106]
[1646529591190,0.01928516,39634.0,39633.0,0.10626106]
[1646529592793,0.31928516,39634.0,39633.0,0.10626106]
[1646529593452,0.36978516,39634.0,39633.0,0.10626106]
[1646529595556,0.06978516,39634.0,39633.0,0.10626106]
[1646529595755,0.36978516,39634.0,39633.0,0.10626106]
[1646529596355,0.36978516,39634.0,39633.0,0.10615203]
[1646529598395,0.06978516,39634.0,39633.0,0.10615203]
[1646529599195,0.36978516,39634.0,39633.0,0.10615203]
[1646529600197,0.06978516,39634.0,39633.0,0.10640985]
[1646529601037,0.06313424,39634.0,39633.0,0.10640985]
[1646529602639,0.06306509,39634.0,39633.0,0.10640985]
[1646529603439,0.36306509,39634.0,39633.0,0.10640985]
[1646529603640,0.06306509,39634.0,39633.0,0.10640985]
[1646529603839,0.05306509,39634.0,39633.0,0.10640985]
[1646529605684,0.05306509,39634.0,39633.0,0.10739584]
[1646529607187,0.35306509,39634.0,39633.0,0.10739584]
[1646529607387,0.05306509,39634.0,39633.0,0.10739584]
[1646529607787,0.35306509,39634.0,39633.0,0.10739584]
[1646529608236,0.05306509,39634.0,39633.0,0.10739584]
[1646529610241,0.35306509,39634.0,39633.0,0.10739584]
[1646529610441,0.70962509,39634.0,39633.0,0.10739584]
[1646529610641,1.59717972,39634.0,39633.0,0.10739584]
[1646529610943,1.59717972,39634.0,39633.0,0.00218465]
[1646529610944,1.60383064,39634.0,39633.0,0.00218465]
[1646529611140,1.76073941,39634.0,39633.0,0.00218465]
[1646529611342,0.03790053,39632.0,39614.0,0.38241084]
[1646529611547,0.6313,39624.0,39616.0,0.1164]
[1646529611741,0.6313,39621.0,39610.0,0.0126]
[1646529611988,0.0505,39620.0,39615.0,0.16300997]
[1646529612188,0.0505,39620.0,39610.0,0.15426]
[1646529612389,0.3505,39620.0,39610.0,0.15426]
[1646529612588,0.0505,39620.0,39610.0,0.15426]
[1646529613092,0.15690877,39621.0,39620.0,0.1515]
[1646529613293,0.01261,39632.0,39620.0,0.1515]
[1646529613294,0.29938114,39635.0,39620.0,0.4515]
[1646529613491,0.4563429,39635.0,39621.0,0.3]
[1646529613687,0.29938114,39635.0,39622.0,0.37236204]
[1646529613890,0.00022997,39626.0,39623.0,0.3]
[1646529614088,0.00022997,39626.0,39622.0,0.34710204]
[1646529614290,0.00022997,39626.0,39623.0,0.3]
[1646529614688,0.00022997,39626.0,39622.0,0.34710204]
[1646529614988,0.00022998,39626.0,39623.0,0.3]
[1646529615194,0.00022998,39626.0,39622.0,0.34710204]
[1646529616072,0.0505,39633.0,39622.0,0.37236204]
[1646529616269,0.00022998,39626.0,39623.0,0.3]
[1646529616466,0.00022998,39626.0,39622.0,0.34710204]
[1646529617267,0.003,39627.0,39623.0,0.3]
[1646529617467,0.00022998,39626.0,39623.0,0.3]
[1646529617666,0.00022998,39626.0,39622.0,0.34710204]
[1646529618467,0.005,39632.0,39622.0,0.34710204]
[1646529618671,0.00022998,39626.0,39622.0,0.34710204]
[1646529619687,0.0505,39629.0,39622.0,0.34710204]
[1646529619887,0.00022998,39626.0,39622.0,0.34710204]
[1646529620491,0.00022998,39626.0,39624.0,0.0019334]
[1646529620888,0.0505,39629.0,39624.0,0.0019334]
[1646529621087,0.00022998,39626.0,39624.0,0.0019334]
[1646529621992,0.0505,39629.0,39624.0,0.0019334]
[1646529622189,0.00022998,39627.0,39624.0,0.0019334]
[1646529623245,0.004,39630.0,39624.0,0.0019334]
[1646529623444,0.00022998,39627.0,39624.0,0.0019334]
[1646529624343,0.0505,39632.0,39624.0,0.0019334]
[1646529624746,0.00022998,39627.0,39626.0,0.00094511]
[1646529625544,0.0505,39632.0,39626.0,0.00094511]
[1646529625948,0.00022997,39628.0,39626.0,0.00094511]
[1646529626146,0.00022997,39628.0,39626.0,0.15749356]
[1646529626747,0.003,39637.0,39626.0,0.15749356]
[1646529626990,0.00022997,39629.0,39627.0,0.3]
[1646529627884,0.00022997,39629.0,39626.0,0.15749356]
[1646529628084,0.43449684,39639.0,39626.0,0.18275356]
[1646529628285,0.00022997,39630.0,39627.0,0.3]
[1646529628484,0.00022997,39630.0,39626.0,0.15749356]
[1646529629284,0.004,39633.0,39626.0,0.15749356]
[1646529629484,0.00022997,39630.0,39626.0,0.15749356]
[1646529630284,0.004,39634.0,39627.0,0.0009886]
[1646529630750,0.00022997,39630.0,39627.0,0.0009886]
[1646529631648,0.226,39633.0,39627.0,0.0009886]
[1646529634253,0.00026045,39632.0,39627.0,0.0009886]
[1646529634693,0.00026045,39632.0,39629.0,0.00094217]
[1646529635296,0.226,39633.0,39629.0,0.00094217]
[1646529635596,0.00024289,39632.0,39629.0,0.00094217]
[1646529636496,0.226,39633.0,39629.0,0.00094217]
[1646529636698,0.00024289,39632.0,39629.0,0.00094217]
[1646529637697,0.226,39633.0,39629.0,0.00094217]
[1646529637899,0.00024289,39632.0,39629.0,0.00094217]
[1646529638939,0.226,39633.0,39629.0,0.00094217]
[1646529639138,0.00024289,39632.0,39629.0,0.00094217]
[1646529640040,0.226,39633.0,39630.0,0.00097873]
[1646529640443,0.00024408,39632.0,39630.0,0.19591401]
[1646529641252,0.226,39633.0,39630.0,0.19591401]
[1646529641442,0.22624407,39633.0,39630.0,0.19591401]
[1646529641742,0.22624407,39633.0,39630.0,0.00097873]
[1646529642406,0.226,39633.0,39630.0,0.00097873]
[1646529642805,0.22624407,39633.0,39630.0,0.00097873]
[1646529643408,0.22624407,39633.0,39631.0,0.21003652]
[1646529643608,0.226,39633.0,39631.0,0.21003652]
[1646529644009,0.22624399,39633.0,39631.0,0.21003652]
[1646529644812,0.226,39633.0,39631.0,0.21003652]
[1646529645210,0.226,39633.0,39631.0,0.21097673]
[1646529647643,0.226,39633.0,39631.0,0.00094021]
[1646529650789,0.226,39633.0,39632.0,0.00112666]
[1646529650988,0.24528516,39633.0,39632.0,0.00112666]
[1646529651196,0.24528516,39633.0,39632.0,0.00048912]
[1646529655547,0.24528516,39633.0,39632.0,0.00108807]
[1646529656345,0.24028516,39633.0,39632.0,0.00108807]
[1646529660097,0.221,39633.0,39632.0,0.00108807]
[1646529660303,0.00024399,39634.0,39633.0,0.68098897]
[1646529660497,0.003,39639.0,39633.0,0.33098897]
[1646529660742,0.003,39639.0,39634.0,0.3]
[1646529661146,0.003,39639.0,39634.0,0.51398662]
[1646529661345,0.003,39639.0,39634.0,0.21398662]
[1646529661546,0.003,39639.0,39633.0,0.33098897]
[1646529661745,0.01224181,39641.0,39633.0,0.33098897]
[1646529661946,0.00024398,39638.0,39633.0,0.33098897]
[1646529662145,0.00024398,39638.0,39633.0,0.53361604]
[1646529662949,0.01224181,39641.0,39633.0,0.53361604]
[1646529663148,0.00024398,39637.0,39633.0,0.53361604]
[1646529663550,0.00024398,39637.0,39633.0,0.33098897]
[1646529664148,0.0505,39640.0,39633.0,0.33098897]
[1646529664347,0.00024399,39637.0,39633.0,0.33098897]
[1646529665195,0.003,39639.0,39633.0,0.33098897]
[1646529665397,0.003,39639.0,39636.0,0.00214969]
[1646529665599,0.01952915,39637.0,39636.0,0.00214969]
[1646529666195,0.00024399,39637.0,39636.0,0.00214969]
[1646529666396,0.0505,39640.0,39636.0,0.00214969]
[1646529666598,0.01928516,39637.0,39636.0,0.00214969]
[1646529666798,0.00024398,39638.0,39636.0,0.00214969]
[1646529667201,0.01928516,39637.0,39636.0,0.00214969]
[1646529668100,0.00024398,39638.0,39636.0,0.00214969]
[1646529668743,0.01928516,39637.0,39636.0,0.00214969]
[1646529669542,0.00024398,39639.0,39636.0,0.00214969]
[1646529669744,0.05074398,39639.0,39636.0,0.00214969]
[1646529670146,0.0505,39639.0,39636.0,0.0010552]
[1646529670344,0.05074398,39639.0,39636.0,0.0010552]
[1646529670544,0.01928516,39637.0,39636.0,0.0010552]
[1646529670747,0.05074398,39639.0,39636.0,0.0010552]
[1646529671344,0.0505,39639.0,39636.0,0.0010552]
[1646529671545,0.05074398,39639.0,39636.0,0.0010552]
[1646529671743,0.01928516,39637.0,39636.0,0.0010552]
[1646529672199,0.05074398,39639.0,39636.0,0.0010552]
[1646529672396,0.0505,39639.0,39636.0,0.0010552]
[1646529672895,0.00024398,39638.0,39636.0,0.0010552]
[1646529673700,0.0505,39639.0,39636.0,0.0010552]
[1646529673896,0.00024398,39639.0,39636.0,0.0010552]
[1646529674298,0.01928516,39637.0,39636.0,0.0010552]
[1646529674499,0.00024398,39639.0,39636.0,0.0010552]
[1646529674698,0.01263073,39637.0,39633.0,0.32594797]
[1646529674900,0.03750181,39641.0,39633.0,0.32594797]
[1646529675100,0.00024398,39639.0,39633.0,0.32594797]
[1646529675399,0.00118036,39639.0,39638.0,0.00082755]
[1646529675598,0.01381109,39639.0,39638.0,0.00082755]
[1646529676052,0.01356711,39639.0,39638.0,0.00082755]
[1646529679250,0.01356711,39639.0,39636.0,0.21794854]
[1646529679495,0.00093638,39639.0,39636.0,0.21442989]
[1646529679896,0.00118036,39639.0,39633.0,0.32594797]
[1646529680303,0.0505,39638.0,39633.0,0.32594797]
[1646529681103,0.00024398,39637.0,39633.0,0.32594797]
[1646529681499,0.05074398,39637.0,39633.0,0.32594797]
[1646529682101,0.0505,39637.0,39633.0,0.32594797]
[1646529682299,0.05074399,39637.0,39633.0,0.32594797]
[1646529683245,0.0505,39637.0,39633.0,0.32594797]
[1646529683654,0.05074399,39637.0,39633.0,0.32594797]
[1646529684545,0.0505,39637.0,39633.0,0.32594797]
[1646529684744,0.05074399,39637.0,39633.0,0.32594797]
[1646529685348,0.05074399,39637.0,39635.0,0.00141057]
[1646529685647,0.0505,39637.0,39635.0,0.00141057]
[1646529685844,0.05074399,39637.0,39635.0,0.00141057]
[1646529686854,0.0505,39637.0,39635.0,0.00141057]
[1646529702608,0.0505,39637.0,39635.0,0.00131945]
[1646529707868,0.05041102,39637.0,39635.0,0.00131945]
[1646529712205,0.01224181,39641.0,39635.0,0.00131945]
[1646529712402,0.00024414,39638.0,39635.0,0.00131945]
[1646529712601,0.00024414,39638.0,39636.0,0.375826]
[1646529712804,0.004,39643.0,39638.0,0.00048828]
[1646529713266,0.004,39643.0,39640.0,0.18093716]
[1646529713866,0.0011,39644.0,39640.0,0.18093716]
[1646529715968,0.00120821,39644.0,39640.0,0.18093716]
[1646529716868,0.0011,39644.0,39640.0,0.18093716]
[1646529717098,0.00136057,39644.0,39640.0,0.18093716]
[1646529717701,0.00136057,39644.0,39638.0,0.00048828]
[1646529717899,0.00724212,39650.0,39638.0,0.00048828]
[1646529717900,0.04126057,39648.0,39638.0,0.00048828]
[1646529718298,0.00026057,39643.0,39638.0,0.00048828]
[1646529719198,0.0505,39645.0,39638.0,0.00048828]
[1646529720749,0.0505,39645.0,39642.0,0.00071304]
[1646529721350,0.01928516,39643.0,39642.0,0.00071304]
[1646529721552,0.31248519,39643.0,39642.0,0.00071304]
[1646529721749,0.85108516,39643.0,39642.0,0.00071304]
[1646529721949,1.14426838,39643.0,39642.0,0.00071304]
[1646529722150,1.30123014,39643.0,39642.0,0.00071304]
[1646529722351,1.09644792,39643.0,39642.0,0.00071304]
[1646529723350,0.93948616,39643.0,39642.0,0.00071304]
[1646529723748,1.09644792,39643.0,39642.0,0.00071304]
[1646529723949,0.93948616,39643.0,39642.0,0.00071304]
[1646529724150,1.09644792,39643.0,39642.0,0.00071304]
[1646529724799,0.93948616,39643.0,39642.0,0.00071304]
[1646529724998,1.09644792,39643.0,39642.0,0.00071304]
[1646529725201,0.93948616,39643.0,39642.0,0.00071304]
[1646529725399,1.09644792,39643.0,39641.0,0.00071138]
[1646529725599,0.65058516,39642.0,39641.0,0.00071138]
[1646529725799,0.90754692,39642.0,39641.0,0.00071138]
[1646529725999,0.79608516,39642.0,39641.0,0.00071138]
[1646529726198,0.95304692,39642.0,39641.0,0.00071138]
[1646529726398,0.79608516,39642.0,39641.0,0.00071138]
[1646529726598,0.95304692,39642.0,39641.0,0.00071138]
[1646529726799,0.79608516,39642.0,39641.0,0.00071138]
[1646529726998,0.95304692,39642.0,39641.0,0.00071138]
[1646529727199,0.79608516,39642.0,39641.0,0.00071138]
[1646529727398,0.95304692,39642.0,39641.0,0.00071138]
[1646529727598,0.79608516,39642.0,39641.0,0.00071138]
[1646529727999,0.95304692,39642.0,39641.0,0.00071138]
[1646529728252,0.79608516,39642.0,39641.0,0.00071138]
[1646529728656,0.95304692,39642.0,39641.0,0.00071138]
[1646529728858,0.79608516,39642.0,39641.0,0.00071138]
[1646529729054,0.95304692,39642.0,39641.0,0.00071138]
[1646529729256,0.79608516,39642.0,39641.0,0.00071138]
[1646529729454,0.9584834,39642.0,39641.0,0.00071138]
[1646529729654,0.79608516,39642.0,39641.0,0.00071138]
[1646529729856,0.95304692,39642.0,39641.0,0.00071138]
[1646529730072,0.79608516,39642.0,39641.0,0.00071138]
[1646529730359,0.95304692,39642.0,39641.0,0.00071138]
[1646529730558,0.79608516,39642.0,39641.0,0.0007519]
[1646529730758,0.95304692,39642.0,39641.0,0.0007519]
[1646529730959,0.79608516,39642.0,39641.0,0.0007519]
[1646529731159,0.95304692,39642.0,39641.0,0.0007519]
[1646529731359,0.79608516,39642.0,39641.0,0.0007519]
[1646529731564,0.95304692,39642.0,39641.0,0.0007519]
[1646529731759,0.79608516,39642.0,39641.0,0.0007519]
[1646529732000,0.95304692,39642.0,39641.0,0.0007519]
[1646529732199,0.79608516,39642.0,39641.0,0.0007519]
[1646529732400,0.95304692,39642.0,39641.0,0.0007519]
[1646529732602,0.79608516,39642.0,39641.0,0.0007519]
[1646529732806,0.97830692,39642.0,39641.0,0.0007519]
[1646529733005,0.82134516,39642.0,39641.0,0.0007519]
[1646529733201,0.97830692,39642.0,39641.0,0.0007519]
[1646529733402,0.82134516,39642.0,39641.0,0.0007519]
[1646529733604,0.97830692,39642.0,39641.0,0.0007519]
[1646529733803,0.82134516,39642.0,39641.0,0.0007519]
[1646529734002,0.97830692,39642.0,39641.0,0.0007519]
[1646529734403,0.82134516,39642.0,39641.0,0.0007519]
[1646529734603,0.97830692,39642.0,39641.0,0.0007519]
[1646529734804,0.82134516,39642.0,39641.0,0.0007519]
[1646529735006,0.97830692,39642.0,39641.0,0.0007519]
[1646529735204,0.82134516,39642.0,39641.0,0.00066287]
[1646529735506,0.87134516,39642.0,39641.0,0.00066287]
[1646529736153,0.82134516,39642.0,39641.0,0.00066287]
[1646529737754,0.97830692,39642.0,39641.0,0.00066287]
[1646529737955,0.82134516,39642.0,39641.0,0.00066287]
[1646529738159,0.97830692,39642.0,39641.0,0.00066287]
[1646529738356,0.82134516,39642.0,39641.0,0.00066287]
[1646529738556,0.97830692,39642.0,39641.0,0.00066287]
[1646529738756,0.82134516,39642.0,39641.0,0.00066287]
[1646529738959,0.97830692,39642.0,39641.0,0.00066287]
[1646529739156,0.82134516,39642.0,39641.0,0.00066287]
[1646529739358,0.97830692,39642.0,39641.0,0.00066287]
[1646529739605,0.82134516,39642.0,39634.0,0.20938291]
[1646529739903,0.1,39641.0,39633.0,0.32594797]
[1646529740101,0.0505,39640.0,39633.0,0.32594797]
[1646529740701,0.01577332,39639.0,39634.0,0.19430708]
[1646529740999,0.0505,39638.0,39634.0,0.19430708]
[1646529743252,0.0505,39638.0,39633.0,0.32594797]
[1646529744651,0.0505,39638.0,39634.0,0.1597628]
[1646529745054,0.004,39643.0,39634.0,0.1597628]
[1646529745252,0.0505,39641.0,39634.0,0.4597628]
[1646529745453,0.0505,39641.0,39634.0,0.1597628]
[1646529745656,0.0505,39641.0,39636.0,0.00169935]
[1646529750517,0.0505,39641.0,39634.0,0.1597628]
[1646529753751,0.0455,39641.0,39634.0,0.1597628]
[1646529757810,0.0455,39641.0,39635.0,0.3]
[1646529760051,0.0455,39641.0,39634.0,0.1597628]
[1646529763800,0.0405,39641.0,39634.0,0.1597628]
[1646529766359,0.0405,39641.0,39634.0,0.33665308]
[1646529766856,0.0405,39641.0,39634.0,0.63665308]
[1646529768656,0.0405,39641.0,39634.0,0.33665308]
[1646529769813,0.3,39640.0,39634.0,0.17689028]
[1646529770209,0.0505,39639.0,39634.0,0.17689028]
[1646529770410,0.0505,39640.0,39634.0,0.17689028]
[1646529773651,0.36212485,39638.0,39634.0,0.17689028]
[1646529773849,0.0505,39637.0,39636.0,0.19607239]
[1646529776351,0.0505,39637.0,39632.0,0.19956329]
[1646529776352,0.41262485,39637.0,39632.0,0.19956329]
[1646529777404,0.41262485,39637.0,39633.0,0.16766345]
[1646529777598,0.41262485,39637.0,39628.0,0.3]
[1646529777800,0.41262485,39637.0,39627.0,0.11754419]
[1646529778000,0.41262485,39637.0,39628.0,0.3]
[1646529778600,0.41262485,39637.0,39632.0,0.20202027]
[1646529780855,0.0505,39637.0,39636.0,0.00147943]
[1646529781455,0.63542,39637.0,39636.0,0.00147943]
[1646529781956,0.99754485,39637.0,39636.0,0.00147943]
[1646529782154,0.77943532,39637.0,39636.0,0.00147943]
[1646529782355,0.63542,39637.0,39636.0,0.00147943]
[1646529782557,0.77943532,39637.0,39636.0,0.00147943]
[1646529782757,0.63542,39637.0,39636.0,0.00147943]
[1646529782959,0.77943532,39637.0,39636.0,0.00147943]
[1646529783258,0.99754485,39637.0,39636.0,0.00147943]
[1646529783458,1.14156017,39637.0,39636.0,0.00147943]
[1646529783657,0.99754485,39637.0,39636.0,0.00147943]
[1646529783857,0.80530395,39637.0,39636.0,0.00147943]
[1646529784056,3.11050937,39637.0,39636.0,0.00147943]
[1646529784257,0.63542,39637.0,39636.0,0.00138138]
[1646529784505,0.77943532,39637.0,39636.0,0.00138138]
[1646529784702,0.63542,39637.0,39636.0,0.00138138]
[1646529785901,0.63542,39637.0,39636.0,0.00072584]
[1646529787805,0.63476172,39637.0,39636.0,0.00072584]
[1646529789163,0.63501436,39637.0,39636.0,0.00072584]
[1646529789361,0.05009436,39637.0,39636.0,0.00072584]
[1646529789561,0.04509436,39637.0,39636.0,0.00072584]
[1646529789761,0.29376701,39637.0,39636.0,0.00072584]
[1646529789960,0.04509436,39637.0,39636.0,0.00072584]
[1646529790861,0.04509436,39637.0,39635.0,0.00072207]
[1646529791062,0.04484172,39637.0,39635.0,0.00072207]
[1646529792724,0.04484172,39637.0,39635.0,0.00072207]
[1646529795982,0.04484172,39637.0,39633.0,0.00075338]
[1646529799819,0.04484172,39637.0,39635.0,0.00077391]
[1646529805391,0.04484172,39637.0,39636.0,0.00074172]
[1646529808323,0.04484172,39637.0,39636.0,0.17612741]
[1646529808520,0.04484172,39637.0,39636.0,0.00074172]
[1646529809919,6.376e-05,39636.0,39635.0,0.00074172]
[1646529810879,0.05056376,39636.0,39635.0,0.00074172]
[1646529814179,1.97057035,39636.0,39635.0,0.00074172]
[1646529814523,0.05056376,39636.0,39635.0,0.00074172]
[1646529814722,0.19457908,39636.0,39635.0,0.00074172]
[1646529814921,7.521e-05,39635.0,39633.0,0.00074262]
[1646529815125,0.05057521,39635.0,39633.0,0.00074262]
[1646529819874,0.05057521,39635.0,39633.0,0.00064084]
[1646529820883,0.67084516,39634.0,39633.0,0.00064084]
[1646529821081,0.69671684,39634.0,39633.0,0.00064084]
[1646529821290,0.74721684,39634.0,39633.0,0.00064084]
[1646529823528,0.89123216,39634.0,39633.0,0.00064084]
[1646529823932,0.72195684,39634.0,39633.0,0.00064084]
[1646529825229,0.72195684,39634.0,39632.0,0.00153543]
[1646529825429,0.36208626,39633.0,39632.0,0.00153543]
[1646529825629,0.41258626,39633.0,39632.0,0.00153543]
[1646529826072,0.0505,39633.0,39632.0,0.00153543]
[1646529826274,0.41258626,39633.0,39632.0,0.00153543]
[1646529828074,0.0505,39633.0,39632.0,0.00153543]
[1646529829174,0.3608285,39633.0,39632.0,0.00153543]
[1646529830135,0.3608285,39633.0,39632.0,0.00074018]
[1646529830341,0.3608285,39633.0,39631.0,0.1576933]
[1646529831138,0.0505,39633.0,39631.0,0.1576933]
[1646529832540,0.3608285,39633.0,39631.0,0.1576933]
[1646529832838,0.0505,39633.0,39631.0,0.1576933]
[1646529833271,0.3608285,39633.0,39631.0,0.1576933]
[1646529833474,0.3608285,39633.0,39622.0,0.2747]
[1646529833674,0.3608285,39633.0,39627.0,0.00024419]
[1646529833873,0.3103285,39632.0,39627.0,0.00024419]
[1646529834272,0.3103285,39632.0,39622.0,0.11994419]
[1646529834475,0.3,39631.0,39622.0,0.47851069]
[1646529834874,0.45434382,39632.0,39622.0,0.3585665]
[1646529835092,0.0505,39631.0,39622.0,0.3585665]
[1646529835275,0.0505,39631.0,39622.0,0.16126214]
[1646529835776,0.6608285,39631.0,39622.0,0.16126214]